fUSD/lending_fUSD_20250514
["ID","MTS","AMOUNT","RATE_DAILY","PERIOD"]
[361106872,1747263066493,-400.0,0.00011728,2]
[361106873,1747263066503,-649.87,0.00011728,2]
[361106874,1747263066512,-400.0,0.00011728,2]
[361106875,1747263066526,-1065.02,0.00011728,2]
[361106876,1747263066536,-400.0,0.00011728,2]
[361106877,1747263066545,-400.0,0.00011728,2]
[361106878,1747263066555,-150.0,0.00011728,2]
[361106879,1747263066565,-400.0,0.00011728,2]
[361106880,1747263066574,-583.1,0.00011728,2]
[361106881,1747263066584,-400.0,0.00011728,2]
[361106882,1747263066594,-500.0,0.00011728,2]
[361106883,1747263066606,-400.0,0.00011728,2]
[361106884,1747263066616,-400.0,0.00011728,2]
[361106885,1747263066627,-400.0,0.00011728,2]
[361106886,1747263066637,-400.0,0.00011728,2]
[361106887,1747263066647,-400.0,0.00011728,2]
[361106888,1747263066656,-400.0,0.00011728,2]
[361106889,1747263066666,-400.0,0.00011728,2]
[361106890,1747263066676,-400.0,0.00011728,2]
[361106891,1747263066685,-150.0,0.00011728,2]
[361106892,1747263066695,-504.92,0.00011728,2]
[361106893,1747263066705,-400.0,0.00011728,2]
[361106894,1747263066715,-502.94,0.00011728,2]
[361106895,1747263066724,-400.0,0.00011728,2]
[361106896,1747263066734,-500.0,0.00011728,2]
[361106897,1747263066745,-543.05,0.00011728,2]
[361106898,1747263066755,-400.0,0.00011728,2]
[361106899,1747263066765,-770.34,0.00011728,2]
[361106900,1747263066775,-400.0,0.00011728,2]
[361106901,1747263066784,-500.0,0.00011728,2]
[361106902,1747263066794,-515.11,0.00011728,2]
[361106903,1747263066803,-344.78,0.00011728,2]
[361106904,1747263066812,-400.0,0.00011728,2]
[361106905,1747263066821,-400.0,0.00011728,2]
[361106906,1747263066829,-400.0,0.00011728,2]
[361106907,1747263066837,-1200.42,0.00011728,2]
[361106908,1747263066846,-612.24,0.00011728,2]
[361106909,1747263066856,-553.28,0.00011728,2]
[361106910,1747263066866,-400.0,0.00011728,2]
[361106911,1747263066875,-437.87,0.00011728,2]
[361106912,1747263066885,-543.52,0.00011728,2]
[361106913,1747263066895,-400.0,0.00011728,2]
[361106914,1747263066904,-400.0,0.00011728,2]
[361106915,1747263066914,-400.0,0.00011728,2]
[361106916,1747263066925,-532.54,0.00011728,2]
[361106917,1747263066936,-400.0,0.00011728,2]
[361106918,1747263066946,-500.18,0.00011728,2]
[361106919,1747263066957,-381.6715465,0.00011728,2]
[361106920,1747263066967,-445.96,0.00011728,2]
[361106921,1747263066976,-408.54,0.00011728,2]
[361106922,1747263066986,-400.0,0.00011728,2]
[361106923,1747263066995,-400.0,0.00011728,2]
[361106924,1747263067005,-481.37,0.00011728,2]
[361106925,1747263067015,-400.0,0.00011728,2]
[361106926,1747263067027,-400.0,0.00011728,2]
[361106927,1747263067038,-1058.08,0.00011728,2]
[361106928,1747263067050,-400.0,0.00011728,2]
[361106929,1747263067060,-400.0,0.00011728,2]
[361106930,1747263067070,-400.0,0.00011728,2]
[361106931,1747263067080,-400.0,0.00011728,2]
[361106932,1747263067089,-946.04,0.00011728,2]
[361106933,1747263067099,-400.0,0.00011728,2]
[361106934,1747263067108,-400.0,0.00011728,2]
[361106935,1747263067117,-400.0,0.00011728,2]
[361106936,1747263067127,-362.16,0.00011728,2]
[361106937,1747263067137,-150.0,0.00011728,2]
[361106938,1747263067146,-447.89,0.00011728,2]
[361106939,1747263067155,-400.0,0.00011728,2]
[361106940,1747263067165,-400.0,0.00011728,2]
[361106941,1747263067175,-400.0,0.00011728,2]
[361106942,1747263067185,-400.0,0.00011728,2]
[361106943,1747263067194,-444.54,0.00011728,2]
[361106944,1747263067204,-400.0,0.00011728,2]
[361106945,1747263067213,-400.0,0.00011728,2]
[361106946,1747263067223,-400.0,0.00011728,2]
[361106947,1747263067233,-212.79266202,0.00011728,2]
[361106948,1747263067273,-312.75264615,0.00011726,2]
[361106949,1747263068070,-400.0,0.00011178,2]
[361106950,1747263068080,-87.24735385,0.00011726,2]
[361106951,1747263068090,-288.41733798,0.00011728,2]
[361106952,1747263068099,-400.0,0.00011728,2]
[361106953,1747263068109,-485.25,0.00011728,2]
[361106954,1747263068118,-400.0,0.00011728,2]
[361106955,1747263068129,-1301.39,0.00011728,2]
[361106956,1747263068138,-430.94,0.00011728,2]
[361106957,1747263068148,-400.0,0.00011728,2]
[361106958,1747263068158,-400.0,0.00011728,2]
[361106959,1747263068167,-527.17,0.00011728,2]
[361106960,1747263068177,-1787.94,0.00011728,2]
[361106961,1747263068186,-525.91,0.00011728,2]
[361106962,1747263068195,-400.0,0.00011728,2]
[361106963,1747263068204,-400.0,0.00011728,2]
[361106964,1747263068214,-400.0,0.00011728,2]
[361106965,1747263068224,-500.0,0.00011728,2]
[361106966,1747263068233,-400.0,0.00011728,2]
[361106967,1747263068243,-500.0,0.00011728,2]
[361106968,1747263068252,-1021.25,0.00011728,2]
[361106969,1747263068262,-351.70681429,0.00011728,2]
[361106970,1747263068271,-401.27,0.00011728,2]
[361106971,1747263068281,-400.0,0.00011728,2]
[361106972,1747263068290,-400.0,0.00011728,2]
[361106973,1747263068299,-173.74081178,0.00011728,2]
[361106974,1747263068310,-226.25918822,0.00011728,2]
[361106975,1747263068320,-514.15,0.00011728,2]
[361106976,1747263068329,-400.0,0.00011728,2]
[361106977,1747263068339,-400.0,0.00011728,2]
[361106978,1747263068348,-400.0,0.00011728,2]
[361106979,1747263068358,-233.63399979,0.00011728,2]
[361106980,1747263068370,-442.95600021,0.00011728,2]
[361106981,1747263068381,-400.0,0.00011728,2]
[361106982,1747263068391,-400.0,0.00011728,2]
[361106983,1747263068400,-662.59,0.00011728,2]
[361106984,1747263068409,-404.59,0.00011728,2]
[361106985,1747263068418,-400.0,0.00011728,2]
[361106986,1747263068427,-400.0,0.00011728,2]
[361106987,1747263068437,-625.64,0.00011728,2]
[361106988,1747263068446,-400.0,0.00011728,2]
[361106989,1747263068455,-400.0,0.00011728,2]
[361106990,1747263068464,-500.12,0.00011728,2]
[361106991,1747263068474,-400.0,0.00011728,2]
[361106992,1747263068484,-400.0,0.00011728,2]
[361106993,1747263068494,-400.0,0.00011728,2]
[361106994,1747263068504,-564.02,0.00011728,2]
[361106995,1747263068513,-713.37,0.00011728,2]
[361106996,1747263068523,-790.76,0.00011728,2]
[361106997,1747263068535,-400.0,0.00011728,2]
[361106998,1747263068544,-327.94168938,0.00011728,2]
[361106999,1747263068555,-392.30831062,0.00011728,2]
[361107000,1747263068565,-630.64,0.00011728,2]
[361107001,1747263068575,-400.0,0.00011728,2]
[361107002,1747263068585,-1000.0,0.000118,4]
[361107003,1747263068596,-457.51,0.0001182,2]
[361107004,1747263068608,-457.51,0.0001182,2]
[361107005,1747263068619,-1607.46,0.0001182,2]
[361107006,1747263068630,-457.51,0.0001182,2]
[361107007,1747263068639,-1400.0,0.000119,4]
[361107008,1747263068650,-7290.93884705,0.00011918,2]
[361107009,1747263068659,-7592.0,0.00011945,2]
[361107010,1747263068669,-3859.14793398,0.00011963,2]
[361107011,1747263068678,-500.0,0.0001197,2]
[361107012,1747263068687,-1000.0,0.0001197,2]
[361107013,1747263068697,-180.38712661,0.00011986,2]
[361107014,1747263068706,-1680.0,0.00011989,2]
[361107015,1747263068716,-400.0,0.00011998,2]
[361107016,1747263068726,-552.8,0.00011998,2]
[361107017,1747263068736,-717.97,0.00011998,2]
[361107018,1747263068745,-400.0,0.00011998,2]
[361107019,1747263068755,-400.0,0.00011998,2]
[361107020,1747263068764,-477.7,0.00011998,2]
[361107021,1747263068773,-537.92,0.00011998,2]
[361107022,1747263068783,-400.57,0.00011998,2]
[361107023,1747263068792,-400.0,0.00011998,2]
[361107024,1747263068802,-400.0,0.00011998,2]
[361107025,1747263068811,-486.06,0.00011998,2]
[361107026,1747263068821,-485.16,0.00011998,2]
[361107027,1747263068830,-400.0,0.00011998,2]
[361107028,1747263068841,-400.0,0.00011998,2]
[361107029,1747263068850,-400.0,0.00011998,2]
[361107030,1747263068860,-400.0,0.00011998,2]
[361107031,1747263068870,-400.0,0.00011998,2]
[361107032,1747263068881,-645.3,0.00011998,2]
[361107033,1747263068890,-450.29,0.00011998,2]
[361107034,1747263068899,-400.0,0.00011998,2]
[361107035,1747263068908,-400.0,0.00011998,2]
[361107036,1747263068918,-407.4,0.00011998,2]
[361107037,1747263068927,-400.0,0.00011998,2]
[361107038,1747263068936,-400.0,0.00011998,2]
[361107039,1747263068946,-400.0,0.00011998,2]
[361107040,1747263068955,-400.0,0.00011998,2]
[361107041,1747263068964,-106.16101458,0.00011998,2]
[361107042,1747263068976,-293.83898542,0.00011998,2]
[361107043,1747263068986,-400.0,0.00011998,2]
[361107044,1747263068996,-413.75,0.00011998,2]
[361107045,1747263069006,-400.0,0.00011998,2]
[361107046,1747263069015,-400.0,0.00011998,2]
[361107047,1747263069024,-400.0,0.00011998,2]
[361107048,1747263069034,-405.92,0.00011998,2]
[361107049,1747263069043,-400.0,0.00011998,2]
[361107050,1747263069053,-400.0,0.00011998,2]
[361107051,1747263069062,-400.0,0.00011998,2]
[361107052,1747263069071,-400.0,0.00011998,2]
[361107053,1747263069080,-400.0,0.00011998,2]
[361107054,1747263069089,-1158.76,0.00011998,2]
[361107055,1747263069099,-400.0,0.00011998,2]
[361107056,1747263069108,-400.0,0.00011998,2]
[361107057,1747263069119,-400.0,0.00011998,2]
[361107058,1747263069130,-712.57,0.00011998,2]
[361107059,1747263069140,-733.4,0.00011998,2]
[361107060,1747263069150,-400.0,0.00011998,2]
[361107061,1747263069162,-786.13,0.00011998,2]
[361107062,1747263069171,-1224.07,0.00011998,2]
[361107063,1747263069181,-1150.65,0.00011998,2]
[361107064,1747263069190,-1039.78,0.00011998,2]
[361107065,1747263069199,-400.0,0.00011998,2]
[361107066,1747263069209,-1008.13,0.00011998,2]
[361107067,1747263069218,-523.91,0.00011998,2]
[361107068,1747263069228,-400.0,0.00011998,2]
[361107069,1747263069237,-582.18,0.00011998,2]
[361107070,1747263069246,-5629.63,0.00011998,2]
[361107071,1747263069256,-400.0,0.00011998,2]
[361107072,1747263069265,-400.0,0.00011998,2]
[361107073,1747263069276,-400.0,0.00011998,2]
[361107074,1747263069285,-400.0,0.00011998,2]
[361107075,1747263069294,-3664.68,0.00011998,2]
[361107076,1747263069304,-5733.66,0.00011998,2]
[361107077,1747263069313,-1797.78,0.00011998,2]
[361107078,1747263069322,-455.37,0.00011998,2]
[361107079,1747263069331,-1300.13,0.00011998,2]
[361107080,1747263069341,-857.87,0.00011998,2]
[361107081,1747263069350,-801.49,0.00011998,2]
[361107082,1747263069360,-400.0,0.00011998,2]
[361107083,1747263069369,-400.0,0.00011998,2]
[361107084,1747263069380,-400.0,0.00011998,2]
[361107085,1747263069390,-416.37,0.00011998,2]
[361107086,1747263069399,-2169.24,0.00011998,2]
[361107087,1747263069408,-400.0,0.00011998,2]
[361107088,1747263069418,-508.82,0.00011998,2]
[361107089,1747263069427,-400.0,0.00011998,2]
[361107090,1747263069437,-400.0,0.00011998,2]
[361107091,1747263069446,-430.95,0.00011998,2]
[361107092,1747263069456,-536.19,0.00011998,2]
[361107093,1747263069466,-400.0,0.00011998,2]
[361107094,1747263069474,-868.81,0.00011998,2]
[361107095,1747263069484,-400.0,0.00011998,2]
[361107096,1747263069493,-440.6,0.00011998,2]
[361107097,1747263069503,-507.29,0.00011998,2]
[361107098,1747263069512,-3967.08,0.00011998,2]
[361107099,1747263069522,-409.2,0.00011998,2]
[361107100,1747263069534,-750.04,0.00011998,2]
[361107101,1747263069543,-15049.42,0.00011998,2]
[361107102,1747263069553,-1403.03,0.00011998,2]
[361107103,1747263069562,-400.0,0.00011998,2]
[361107104,1747263069573,-644.71,0.00011998,2]
[361107105,1747263069582,-9363.78,0.00011998,2]
[361107106,1747263069591,-810.34,0.00011998,2]
[361107107,1747263069600,-602.24,0.00011998,2]
[361107108,1747263069611,-400.0,0.00011998,2]
[361107109,1747263069622,-468.57,0.00011998,2]
[361107110,1747263069632,-566.59,0.00011998,2]
[361107111,1747263069642,-2374.01,0.00011998,2]
[361107112,1747263069651,-573.1,0.00011998,2]
[361107113,1747263069661,-467.02,0.00011998,2]
[361107114,1747263069670,-502.91,0.00011998,2]
[361107115,1747263069679,-588.87,0.00011998,2]
[361107116,1747263069689,-429.96,0.00011998,2]
[361107117,1747263069698,-1161.36,0.00011998,2]
[361107118,1747263069708,-400.0,0.00011998,2]
[361107119,1747263069717,-400.0,0.00011998,2]
[361107120,1747263069726,-400.0,0.00011998,2]
[361107121,1747263069735,-400.0,0.00011998,2]
[361107122,1747263069745,-3475.15,0.00011998,2]
[361107123,1747263069755,-400.0,0.00011998,2]
[361107124,1747263069826,-400.0,0.00011998,2]
[361107125,1747263069835,-468.12,0.00011998,2]
[361107126,1747263069845,-400.0,0.00011998,2]
[361107127,1747263069855,-500.0,0.00011999,2]
[361107128,1747263069864,-500.0,0.00011999,2]
[361107129,1747263069874,-252529.72215669,0.00012,2]
[361107130,1747263070318,-838.17418003,0.00012,2]
[361107131,1747263070330,-6484.38454392,0.00012,2]
[361107132,1747263070341,-9038.31132716,0.00012,2]
[361107133,1747263070352,-11719.36770365,0.00012,2]
[361107134,1747263070363,-2722.32958891,0.00012,2]
[361107135,1747263070375,-6818.22021088,0.00012,2]
[361107136,1747263070386,-24494.67141901,0.00012,2]
[361107137,1747263070398,-4665.0002005,0.00012,2]
[361107138,1747263070410,-2051.07280594,0.00012,2]
[361107141,1747263155477,419.63,8.869e-05,2]
[361107158,1747263304474,150.0,0.00010534,7]
[361107162,1747263888962,4081.51,0.0001,2]
[361107163,1747263888984,10000.0,0.0001,2]
[361107164,1747263889005,2666.59809381,0.0001,2]
[361107165,1747263904941,450.0,0.0001,2]
[361107167,1747264187757,398.64,8.299e-05,2]
[361107172,1747264231552,-547.27,0.00010156,2]
[361107183,1747264231986,-200.0,0.00010185,2]
[361107191,1747264232013,-131.9997946,0.00010185,2]
[361107197,1747264232026,-118.0002054,0.00010185,2]
[361107200,1747264232035,-135.53350754,0.00010214,2]
[361107203,1747264232046,-64.46649246,0.00010214,2]
[361107206,1747264232056,-200.0,0.00010214,2]
[361107208,1747264232064,-197.31,0.00010258,2]
[361107210,1747264232073,-417.75540384,0.00010266,2]
[361107213,1747264232091,-582.24459616,0.00010266,2]
[361107215,1747264232100,-398.64,0.00010563,2]
[361107217,1747264232109,-21.18515975,0.00010999,2]
[361107219,1747264232121,-1140.00546,0.00010999,2]
[361107222,1747264232145,-38.80938025,0.00010999,2]
[361107224,1747264232155,-254.50689141,0.00011,2]
[361107227,1747264232166,-798.00310859,0.00011,2]
[361107229,1747264232175,-1052.51,0.00011,2]
[361107231,1747264232184,-367.48441959,0.00011,2]
[361107235,1747264232214,-685.02558041,0.00011,2]
[361107237,1747264232224,-1888.98,0.00011,2]
[361107239,1747264232233,-1888.98,0.00011,2]
[361107241,1747264232242,-1888.98,0.00011,2]
[361107243,1747264232252,-1845.44935514,0.00011,2]
[361107414,1747264237553,-352.84710549,0.00011,2]
[361107415,1747264237566,-1748.60353937,0.00011,2]
[361107416,1747264237578,-908.99778774,0.00011,2]
[361107417,1747264237590,-277.46954007,0.00011,2]
[361107419,1747264237808,-2760.43267219,0.00011,2]
[361107420,1747264237819,-3946.9,0.00011,2]
[361107422,1747264237829,-3946.9,0.00011,2]
[361107424,1747264237839,-1118.08312127,0.00011,2]
[361107426,1747264237852,-402.48524215,0.00011,2]
[361107427,1747264237864,-2426.33163658,0.00011,2]
[361107428,1747264237874,-3804.0731,0.00011077,2]
[361107430,1747264237883,-6991.1848,0.00011077,2]
[361107432,1747264237892,-3775.71418305,0.00011077,2]
[361107434,1747264237903,-4674.65691371,0.00011077,2]
[361107445,1747264240308,-470.19655697,0.00011077,2]
[361107446,1747264240320,-7687.18084627,0.00011077,2]
[361107447,1747264240329,-351.29590669,0.00011078,2]
[361107448,1747264240338,-207.4,0.00011092,2]
[361107449,1747264240347,-455.07757688,0.00011098,2]
[361107450,1747264240356,-12435.68774082,0.00011099,2]
[361107451,1747264240365,-1052.51,0.000111,2]
[361107452,1747264240374,-200.72339149,0.000111,2]
[361107453,1747264240398,-851.78660851,0.000111,2]
[361107454,1747264240407,-1719.96339149,0.000111,2]
[361107459,1747264242720,-169.01660851,0.000111,2]
[361107460,1747264242730,-1888.98,0.000111,2]
[361107461,1747264242740,-299.99,0.00011133,2]
[361107462,1747264242749,-293.23634756,0.00011168,2]
[361107463,1747264242758,-151.0,0.00011171,2]
[361107464,1747264242768,-151.0,0.00011171,2]
[361107465,1747264242778,-668.65185757,0.00011171,2]
[361107466,1747264242787,-151.0,0.00011171,2]
[361107467,1747264242796,-200.0,0.00011171,2]
[361107468,1747264242806,-250.0,0.00011171,2]
[361107469,1747264242815,-500.0,0.00011173,2]
[361107470,1747264242824,-304.14358234,0.00011173,2]
[361107471,1747264242833,-500.0,0.00011173,2]
[361107472,1747264242843,-204.47003954,0.00011176,2]
[361107473,1747264242852,-400.0,0.00011176,2]
[361107474,1747264242861,-460.7,0.00011176,2]
[361107475,1747264242870,-400.0,0.00011176,2]
[361107476,1747264242880,-400.0,0.00011176,2]
[361107477,1747264242890,-400.0,0.00011176,2]
[361107478,1747264242899,-564.43,0.00011176,2]
[361107479,1747264242909,-591.33,0.00011176,2]
[361107480,1747264242920,-400.0,0.00011176,2]
[361107481,1747264242930,-400.0,0.00011176,2]
[361107482,1747264242940,-400.0,0.00011176,2]
[361107483,1747264242949,-1034.53,0.00011176,2]
[361107484,1747264242959,-3042.34,0.00011176,2]
[361107485,1747264242968,-400.0,0.00011176,2]
[361107486,1747264242978,-400.0,0.00011176,2]
[361107487,1747264242987,-400.0,0.00011176,2]
[361107488,1747264242997,-400.0,0.00011176,2]
[361107489,1747264243006,-688.76,0.00011176,2]
[361107490,1747264243015,-4870.56,0.00011176,2]
[361107491,1747264243025,-623.04,0.00011176,2]
[361107492,1747264243035,-1611.73,0.00011176,2]
[361107493,1747264243046,-583.04,0.00011176,2]
[361107494,1747264243055,-520.17,0.00011176,2]
[361107496,1747264243065,-400.0,0.00011176,2]
[361107498,1747264243074,-400.0,0.00011176,2]
[361107499,1747264243083,-904.64,0.00011176,2]
[361107500,1747264243092,-400.0,0.00011176,2]
[361107501,1747264243101,-400.0,0.00011176,2]
[361107502,1747264243111,-400.0,0.00011176,2]
[361107503,1747264243120,-455.41,0.00011176,2]
[361107504,1747264243129,-824.3,0.00011176,2]
[361107505,1747264243139,-1128.45,0.00011176,2]
[361107507,1747264243148,-531.71,0.00011176,2]
[361107509,1747264243157,-1437.463881,0.00011176,2]
[361107510,1747264243166,-400.0,0.00011176,2]
[361107512,1747264243176,-400.0,0.00011176,2]
[361107513,1747264243185,-662.22,0.00011176,2]
[361107514,1747264243195,-400.0,0.00011176,2]
[361107515,1747264243204,-400.0,0.00011176,2]
[361107516,1747264243214,-400.0,0.00011176,2]
[361107518,1747264243223,-400.0,0.00011176,2]
[361107519,1747264243232,-400.0,0.00011177,2]
[361107520,1747264243242,-400.0,0.00011177,2]
[361107521,1747264243251,-400.0,0.00011177,2]
[361107522,1747264243260,-400.0,0.00011177,2]
[361107523,1747264243269,-500.0,0.00011177,2]
[361107524,1747264243278,-400.0,0.00011177,2]
[361107525,1747264243287,-400.20823459,0.00011177,2]
[361107526,1747264243296,-400.0,0.00011177,2]
[361107527,1747264243305,-400.0,0.00011177,2]
[361107528,1747264243314,-400.0,0.00011177,2]
[361107529,1747264243323,-400.0,0.00011177,2]
[361107530,1747264243332,-401.27469673,0.00011177,2]
[361107531,1747264243341,-550.35,0.00011177,2]
[361107532,1747264243350,-400.0,0.00011177,2]
[361107533,1747264243359,-400.0,0.00011177,2]
[361107534,1747264243369,-400.0,0.00011177,2]
[361107535,1747264243379,-500.0,0.00011177,2]
[361107536,1747264243390,-400.0,0.00011177,2]
[361107537,1747264243399,-400.0,0.00011177,2]
[361107538,1747264243409,-400.0,0.00011177,2]
[361107539,1747264243419,-544.90536706,0.00011177,2]
[361107540,1747264243430,-500.0,0.00011177,2]
[361107541,1747264243440,-400.0,0.00011177,2]
[361107542,1747264243451,-500.0,0.00011177,2]
[361107543,1747264243460,-400.0,0.00011177,2]
[361107544,1747264243469,-400.0,0.00011177,2]
[361107545,1747264243479,-400.0,0.00011177,2]
[361107546,1747264243488,-400.0,0.00011177,2]
[361107547,1747264243498,-400.0,0.00011177,2]
[361107548,1747264243507,-400.0,0.00011177,2]
[361107549,1747264243517,-400.0,0.00011177,2]
[361107550,1747264243527,-400.0,0.00011177,2]
[361107551,1747264243539,-500.0,0.00011177,2]
[361107552,1747264243549,-400.0,0.00011177,2]
[361107553,1747264243558,-402.06963206,0.00011177,2]
[361107554,1747264243567,-400.0,0.00011177,2]
[361107555,1747264243578,-400.0,0.00011177,2]
[361107556,1747264243588,-503.27595892,0.00011177,2]
[361107557,1747264243597,-187.64488125,0.00011177,2]
[361107558,1747264243607,-400.0,0.00011177,2]
[361107559,1747264243617,-400.0,0.00011177,2]
[361107560,1747264243627,-763.26,0.00011177,2]
[361107561,1747264243637,-279.85270678,0.00011177,2]
[361107562,1747264243646,-400.0,0.00011177,2]
[361107563,1747264243655,-313.10007095,0.00011177,2]
[361107564,1747264243663,-197.67485753,0.00011177,2]
[361107565,1747264243670,-400.0,0.00011177,2]
[361107566,1747264243679,-400.0,0.00011177,2]
[361107567,1747264243687,-459.53,0.00011177,2]
[361107568,1747264243696,-603.55,0.00011177,2]
[361107569,1747264243704,-400.0,0.00011177,2]
[361107570,1747264243713,-400.0,0.00011177,2]
[361107571,1747264243722,-400.0,0.00011177,2]
[361107572,1747264243731,-400.0,0.00011177,2]
[361107573,1747264243740,-400.0,0.00011177,2]
[361107574,1747264243750,-400.0,0.00011177,2]
[361107575,1747264243759,-400.0,0.00011177,2]
[361107576,1747264243768,-400.0,0.00011177,2]
[361107577,1747264243777,-400.0,0.00011177,2]
[361107578,1747264243786,-400.0,0.00011177,2]
[361107579,1747264243795,-400.0,0.00011177,2]
[361107580,1747264243805,-152.43361022,0.00011177,2]
[361107581,1747264243815,-400.0,0.00011177,2]
[361107582,1747264243824,-500.0,0.00011177,2]
[361107583,1747264243833,-400.0,0.00011177,2]
[361107584,1747264243842,-400.0,0.00011177,2]
[361107585,1747264243852,-400.0,0.00011177,2]
[361107586,1747264243861,-836.53,0.00011177,2]
[361107587,1747264243870,-400.0,0.00011177,2]
[361107588,1747264243880,-400.0,0.00011177,2]
[361107589,1747264243889,-250.0,0.00011177,2]
[361107590,1747264243899,-400.0,0.00011177,2]
[361107591,1747264243908,-400.0,0.00011177,2]
[361107592,1747264243917,-400.0,0.00011177,2]
[361107593,1747264243926,-400.0,0.00011177,2]
[361107594,1747264243936,-400.0,0.00011177,2]
[361107595,1747264243945,-400.0,0.00011177,2]
[361107596,1747264243954,-400.0,0.00011177,2]
[361107597,1747264243963,-547.56,0.00011177,2]
[361107598,1747264243972,-400.0,0.00011177,2]
[361107599,1747264243982,-400.0,0.00011177,2]
[361107600,1747264243991,-400.0,0.00011177,2]
[361107601,1747264244000,-400.0,0.00011177,2]
[361107602,1747264244009,-400.0,0.00011177,2]
[361107603,1747264244019,-400.0,0.00011177,2]
[361107604,1747264244028,-453.66,0.00011177,2]
[361107605,1747264244037,-500.0,0.00011177,2]
[361107606,1747264244046,-400.0,0.00011177,2]
[361107607,1747264244056,-400.0,0.00011177,2]
[361107608,1747264244067,-354.22638001,0.00011177,2]
[361107609,1747264244076,-456.79,0.00011177,2]
[361107610,1747264244087,-624.04,0.00011177,2]
[361107611,1747264244097,-462.37843604,0.00011177,2]
[361107612,1747264244109,-400.0,0.00011177,2]
[361107613,1747264244119,-400.0,0.00011177,2]
[361107614,1747264244129,-400.0,0.00011177,2]
[361107615,1747264244140,-554.63,0.00011177,2]
[361107616,1747264244150,-500.0,0.00011177,2]
[361107617,1747264244159,-400.0,0.00011177,2]
[361107618,1747264244168,-500.0,0.00011177,2]
[361107619,1747264244177,-400.0,0.00011177,2]
[361107620,1747264244186,-400.0,0.00011177,2]
[361107621,1747264244197,-400.0,0.00011177,2]
[361107622,1747264244206,-400.0,0.00011177,2]
[361107623,1747264244215,-400.0,0.00011177,2]
[361107624,1747264244224,-565.99,0.00011177,2]
[361107625,1747264244233,-400.0,0.00011177,2]
[361107626,1747264244242,-400.0,0.00011177,2]
[361107627,1747264244251,-500.0,0.00011177,2]
[361107628,1747264244260,-400.0,0.00011177,2]
[361107629,1747264244270,-400.0,0.00011177,2]
[361107630,1747264244279,-400.0,0.00011177,2]
[361107631,1747264244289,-398.04436202,0.00011177,2]
[361107632,1747264244298,-450.0,0.00011177,2]
[361107633,1747264244306,-400.0,0.00011177,2]
[361107634,1747264244315,-177.54297621,0.00011177,2]
[361107635,1747264244324,-400.0,0.00011177,2]
[361107636,1747264244333,-400.0,0.00011177,2]
[361107637,1747264244342,-400.0,0.00011177,2]
[361107638,1747264244351,-400.0,0.00011177,2]
[361107639,1747264244360,-400.0,0.00011177,2]
[361107640,1747264244370,-400.0,0.00011177,2]
[361107641,1747264244379,-400.0,0.00011177,2]
[361107642,1747264244388,-400.0,0.00011177,2]
[361107643,1747264244397,-400.0,0.00011177,2]